Cogmind - Beta 13 @@@ ROGUE MODE // 2024.04.03 @ 21:03:42 Player: DeluxeH30 Result: Destroyed by G-34 Mercenary with Small Laser Performance ------------- Evolutions (1) 500 Regions Visited (4) 800 Robots Destroyed (56) 280 Value Destroyed (1183) 1183 Prototype IDs (3) 60 Alien Tech Used (0) 0 Bonus (0) 0 TOTAL SCORE: 2823 Bonus ------- None Cogmind --------- Core Integrity 0/400 Matter 155/300 Energy 76/160 System Corruption 0% Temperature Critical (770) Movement Core (350) Ox6 Location -9/Storage Parts ------- > --- POWER (1) -------- Light Nuclear Core > --- PROPULSION (3) --- (None) > --- UTILITY (3) ------ Medium Storage Unit Signal Interpreter > --- WEAPON (2) ------- Advanced Beam Cannon > --- INVENTORY (10) --- Weight Redist. System Experimental Sensor Array Peak State ------------ > --- POWER ------------ Light Nuclear Core > --- PROPULSION ------- Carbon-fiber Leg Carbon-fiber Leg Carbon-fiber Leg > --- UTILITY ---------- Medium Storage Unit Experimental Sensor Array Signal Interpreter > --- WEAPON ----------- Advanced Beam Cannon Heavy Assault Rifle > --- INVENTORY -------- Light Nuclear Core Light Nuclear Core Carbon-fiber Leg Weight Redist. System Particle Charger Particle Charger Core Shielding Advanced Beam Cannon Advanced Beam Cannon [Rating: 30] Favorites ----------- Power Light Nuclear Core Engine Light Ion Engine Power Core Light Nuclear Core Propulsion Carbon-fiber Leg Leg Carbon-fiber Leg Wheel Wheel Hover Unit Hover Unit Flight Unit Flight Unit Utility Small Storage Unit Device Particle Charger Storage Small Storage Unit Processor Terrain Scan Processor Protection Core Shielding Weapon Medium Laser Energy Gun Medium Laser Energy Cannon Beam Cannon Ballistic Gun Improved Assault Rifle Launcher Grenade Launcher Special Weapon Welding Torch Build | -11 -10 -10 -9 -9 ------- Run | Yrd Mat Min Mat Sto Slots Evolved 2 | . . . 2 . Power . | . . . . . Propulsion 1 | . . . 1 . Utility 1 | . . . 1 . Weapon . | . . . . . Parts Attached 74 | 8 28 3 19 16 Power 10 | 3 3 . 2 2 Engine 6 | 3 3 . . . Core 4 | . . . 2 2 Reactor . | . . . . . Propulsion 18 | 2 9 . 5 2 Treads . | . . . . . Leg 11 | 2 2 . 5 2 Wheel 4 | . 4 . . . Hover 2 | . 2 . . . Flight 1 | . 1 . . . Utility 18 | 1 3 3 6 5 Device 7 | . 1 1 2 3 Storage 2 | 1 . . 1 . Processor 2 | . 1 . 1 . Hackware . | . . . . . Protection 7 | . 1 2 2 2 Artifact . | . . . . . Weapon 28 | 2 13 . 6 7 Energy Gun 9 | 2 6 . . 1 Energy Cannon 9 | . 2 . 3 4 Ballistic Gun 4 | . . . 2 2 Ballistic Cannon . | . . . . . Launcher 5 | . 5 . . . Special Weapon 1 | . . . 1 . Impact Weapon . | . . . . . Slashing Weapon . | . . . . . Piercing Weapon . | . . . . . Special Melee Weapon . | . . . . . Unidentified Prototypes 3 | . . 1 2 . Parts Lost 19 | . 6 . 1 12 Power 3 | . 1 . . 2 Propulsion 7 | . 2 . . 5 Utility 3 | . . . . 3 Weapon 6 | . 3 . 1 2 Highest Loss Streak 11 | . 2 . 1 11 To Critical Strikes . | . . . . . Average Slot Usage (%) 92 | . 91 86 97 90 Engine 8 | . 12 14 1 . Core 4 | . . . 9 9 Leg 15 | . 9 . 29 26 Wheel 4 | . 10 . . . Hover 7 | . 3 28 1 . Device 5 | . 3 1 11 2 Storage 12 | . 14 14 11 11 Processor 5 | . 8 . 3 11 Protection 6 | . 1 12 7 8 Energy Gun 8 | . 19 1 . . Energy Cannon 9 | . 4 14 11 12 Ballistic Gun 3 | . . . 8 8 Launcher 1 | . 2 . . . Naked Turns . | . . . . . Heaviest Build 29 | 12 16 12 29 25 Greatest Support 51 | 20 26 18 51 45 Greatest Overweight (x) 5 | 2 5 . 1 1 Average Overweight (x) . | . . . . . Largest Inventory Capacity 10 | 8 8 8 10 10 Average Capacity 8 | 7 8 8 9 10 Most Carried 10 | 3 8 8 10 10 Average Carried 6 | 1 4 7 9 7 Final Capacity 10 | 8 8 8 10 10 Final Carried 9 | 1 8 8 9 2 Class Distribution -------------------- 79% | Mutant 20% | Scavenger-Mutant Dominant Class ---------------- Mutant | -10/Materials Mutant | -10/Mines Mutant | -9/Materials Mutant | -9/Storage Resources | -11 -10 -10 -9 -9 ----------- Run | Yrd Mat Min Mat Sto Matter Collected 1137 | 47 619 37 323 111 Remotely . | . . . . . Salvage Created 1789 | . 714 . 598 477 Parts 122 | . 44 . 43 35 Haulers Intercepted 5 | . 2 . 3 . Recyclers Shooed 7 | . 2 . 1 4 Parts Field Recycled . | . . . . . Retrieved Matter . | . . . . . Parts Self-Destructed . | . . . . . Prevented . | . . . . . Kills | -11 -10 -10 -9 -9 ------- Run | Yrd Mat Min Mat Sto Combat Hostiles Destroyed 31 | . 9 . 8 14 Guns 11 | . 2 . 4 5 Cannons 11 | . . . 4 7 AOE 7 | . 7 . . . Classes Destroyed 10 | . 6 . 4 . Worker 2 | . 2 . . . Builder 5 | . 3 . 1 1 Hauler 5 | . 2 . 3 . Recycler 5 | . 4 . 1 . Mechanic 2 | . . . 1 1 Operator 1 | . . . 1 . Watcher 5 | . 3 . 1 1 Swarmer 8 | . . . 2 6 Grunt 20 | . 9 . 4 7 Sentry 3 | . . . 2 1 Best Kill Streak 8 | . 8 . 4 6 Combat Bots Only 5 | . 2 . 3 5 Max Kills in Single Turn 2 | . 2 . 1 1 Gunslinging . | . . . . . Exploded 2 | . 2 . . . Melee . | . . . . . Uniques/NPCs Destroyed . | . . . . . Combat | -11 -10 -10 -9 -9 -------- Run | Yrd Mat Min Mat Sto Hostile Shots Fired 277 | . 68 . 57 152 Missed 60 | . 21 . 17 22 Damage Taken 2595 | . 807 4 466 1318 Core 642 | . 231 . 69 342 Absorbed by Shields . | . . . . . Redirected to Shielding 54 | . . . . 54 Core Remaining (%) 53 | 100 . 7 . . Volleys Fired 151 | 1 57 . 45 48 Largest 2 | 2 2 . 2 2 Hottest 136 | 100 115 . 91 136 Shots Fired 267 | 2 92 . 86 87 Gun 145 | 2 65 . 41 37 Cannon 107 | . 12 . 45 50 Launcher 15 | . 15 . . . Special . | . . . . . Kinetic 75 | . . . 41 34 Thermal 177 | 2 77 . 45 53 Explosive 15 | . 15 . . . Electromagnetic . | . . . . . Robot Hit Streak 10 | 2 6 . 10 9 Robot Miss Streak 5 | . 3 . 5 5 Penetration Max . | . . . . . Secondary Targets 1 | . 1 . . . Max Gunslinging Chain 1 | . 1 . . . Shots Hit Robots 135 | 2 42 . 48 43 Core Hits 75 | . 36 . 20 19 Critical Kills 2 | . . . . 2 Critical Parts Destroyed . | . . . . . Critical Strikes 8 | 2 4 . . 2 Burn 6 | 2 4 . . . Meltdown 2 | . . . . 2 Melee Attacks . | . . . . . Impact . | . . . . . Slashing . | . . . . . Piercing . | . . . . . Sneak Attacks . | . . . . . Combat Hostiles . | . . . . . Follow-up Attacks . | . . . . . Damage Inflicted 3330 | 25 1353 10 937 1005 Guns 1130 | 25 494 . 310 301 Cannons 1390 | . 69 . 627 694 Explosions 790 | . 790 . . . Melee . | . . . . . Ramming 20 | . . 10 . 10 Kinetic 597 | . . . 310 287 Thermal 1991 | 25 631 . 627 708 Explosive 722 | . 722 . . . Electromagnetic . | . . . . . Impact . | . . . . . Slashing . | . . . . . Piercing . | . . . . . Highest Corruption . | . . . . . Average Corruption . | . . . . . Corruption Purged . | . . . . . Corruption Blocked . | . . . . . Overload Shots . | . . . . . Overflow Damage 15 | . 11 . 3 1 Projectiles 4 | . . . 3 1 Explosions 11 | . 11 . . . Melee . | . . . . . Knockbacks . | . . . . . Impact . | . . . . . Kinetic . | . . . . . Secondary . | . . . . . Self-Inflicted Damage 201 | . 197 4 . . Shots 5 | . 5 . . . Rammed 2 | . . 2 . . Targets Rammed 5 | . . 2 . 3 Kicked 3 | . . . . 3 Crushed . | . . . . . Highest Temperature 764 | 24 271 . 457 764 Average Temperature 150 | 16 81 . 143 246 Received Heat Transfer 996 | . 378 . 153 465 Effects 25 | . 2 . 4 19 Shutdowns 4 | . . . 1 3 Interference 11 | . 2 . 2 7 Matter Decay 2 | . . . . 2 Short Circuit 2 | . . . . 2 Damage (minor) 3 | . . . 1 2 Damage (major) 2 | . . . . 2 Damage (core) 1 | . . . . 1 Siege Activations . | . . . . . Robots Corrupted . | . . . . . Combat Hostiles . | . . . . . Parts Fried . | . . . . . Impact Corruptions . | . . . . . Robots Melted 2 | . . . . 2 Combat Hostiles 2 | . . . . 2 Parts Melted 4 | . 3 . . 1 Heat Transferred 4367 | 222 1888 . 999 1258 Parts Sabotaged . | . . . . . Parts Stolen . | . . . . . Parts Stripped . | . . . . . Power Chain Reactions . | . . . . . Alert | -11 -10 -10 -9 -9 ------- Run | Yrd Mat Min Mat Sto Peak Influence 272 | . 220 73 243 272 Initial 73 | . . 73 27 35 Average 102 | . 116 73 83 179 Maximum Alert Level 1 | . 1 . 1 1 Low Security (%) 82 | 100 73 100 98 45 Level 1 17 | . 26 . 1 54 Level 2 . | . . . . . Level 3 . | . . . . . Level 4 . | . . . . . Level 5 . | . . . . . High Security . | . . . . . Max Security . | . . . . . Squads Dispatched 4 | . . . 2 2 Investigation 1 | . . . 1 . Extermination . | . . . . . Reinforcement 2 | . . . 1 1 Assault . | . . . . . Garrison 1 | . . . . 1 Intercept . | . . . . . Searches Triggered . | . . . . . Construction Impeded . | . . . . . Haulers Reinforced . | . . . . . Active Scanning Responses . | . . . . . Cargo Convoy Interrupts . | . . . . . Stealth | -11 -10 -10 -9 -9 --------- Run | Yrd Mat Min Mat Sto Distress Signals 6 | . . . 2 4 Communications Jammed . | . . . . . Distress Signals . | . . . . . Times Spotted 49 | . 16 . 15 18 Peak Tracking Total 6 | . 5 . 6 6 Tactical Retreats . | . . . . . Traps | -11 -10 -10 -9 -9 ------- Run | Yrd Mat Min Mat Sto Traps Triggered 2 | . . . 2 . Indirectly . | . . . . . Trap Hack Attempts . | . . . . . Triggered . | . . . . . Disarmed . | . . . . . Reprogrammed . | . . . . . Reused . | . . . . . Traps Extracted . | . . . . . Installed . | . . . . . Triggered . | . . . . . Machines | -11 -10 -10 -9 -9 ---------- Run | Yrd Mat Min Mat Sto Machines Disabled 7 | . 6 . 1 . Max in Single Turn 2 | . 2 . 1 . Machines Repaired . | . . . . . Machines Dismantled . | . . . . . Machines Sabotaged . | . . . . . Overloaded Fab Kills . | . . . . . Hacking | -11 -10 -10 -9 -9 --------- Run | Yrd Mat Min Mat Sto Machines Accessed 8 | . 5 . 2 1 Terminals 6 | . 4 . 1 1 Fabricators . | . . . . . Repair Stations . | . . . . . Recycling Units 1 | . 1 . . . Scanalyzers 1 | . . . 1 . Garrison Access . | . . . . . Total Hacks 19 | . 13 . 4 2 Successful 9 | . 7 . 1 1 Failed 10 | . 6 . 3 1 Catastrophic 3 | . 2 . 1 . Database Lockouts . | . . . . . Manual 4 | . 3 . 1 . Terminals 15 | . 11 . 2 2 Fabricators . | . . . . . Repair Stations . | . . . . . Recycling Units 2 | . 2 . . . Scanalyzers 2 | . . . 2 . Garrison Access . | . . . . . Terminal Hacks 6 | . 5 . . 1 Record 3 | . 3 . . . Open Door 1 | . . . . 1 Alert Level 1 | . 1 . . . Zone Layout 1 | . 1 . . . Fabricator Hacks . | . . . . . Repair Station Hacks . | . . . . . Recycling Unit Hacks 2 | . 2 . . . Report Inventory 1 | . 1 . . . Retrieve Components 1 | . 1 . . . Scanalyzer 1 | . . . 1 . Insert Component 1 | . . . 1 . Garrison Access Hacks . | . . . . . Unauthorized Hacks . | . . . . . Terminals . | . . . . . Fabricators . | . . . . . Repair Stations . | . . . . . Recycling Units . | . . . . . Scanalyzers . | . . . . . Garrison Access . | . . . . . Data Cores Recovered . | . . . . . Used . | . . . . . Hacking Detections 6 | . 4 . 2 . Full Trace Events 1 | . . . 1 . Feedback Events . | . . . . . Feedback Blocked . | . . . . . Robot Schematics Acquired . | . . . . . Robots Built . | . . . . . Authchips . | . . . . . Time . | . . . . . Total Robot Build Rating . | . . . . . Part Schematics Acquired . | . . . . . Parts Built . | . . . . . Authchips . | . . . . . Time . | . . . . . Total Part Build Rating . | . . . . . Parts Repaired . | . . . . . Time . | . . . . . Parts Recycled . | . . . . . Recycled Matter . | . . . . . Retrieved Matter . | . . . . . Retrieved Components 10 | . 10 . . . Parts Scanalyzed . | . . . . . Part Schematics Acquired . | . . . . . Parts Damaged . | . . . . . Bothacking | -11 -10 -10 -9 -9 ------------ Run | Yrd Mat Min Mat Sto Used RIF Installer . | . . . . . Robots Hacked . | . . . . . Non-combat . | . . . . . Combat . | . . . . . Robot Hacks Applied . | . . . . . Relay Couplers Released . | . . . . . Fabnet Peak Effective % . | . . . . . Robots Rewired . | . . . . . Allies Hacked . | . . . . . Hacks Repelled . | . . . . . Allies | -11 -10 -10 -9 -9 -------- Run | Yrd Mat Min Mat Sto Total Allies . | . . . . . Largest Group . | . . . . . Highest-Rated Group . | . . . . . Highest-Rated Ally . | . . . . . Total Orders . | . . . . . Ally Attacks . | . . . . . Total Damage . | . . . . . Kills . | . . . . . Allies Corrupted . | . . . . . Allies Melted . | . . . . . Intel | -11 -10 -10 -9 -9 ------- Run | Yrd Mat Min Mat Sto Robot Analysis Total . | . . . . . Derelict Logs Recovered 1 | . . 1 . . Drone Launches . | . . . . . Drone Recoveries . | . . . . . Exploration | -11 -10 -10 -9 -9 ------------- Run | Yrd Mat Min Mat Sto Turns Passed 1753 | 53 684 321 493 202 Spaces Moved 1171 | 30 456 373 278 34 Core 35 | 10 25 . . . Treads . | . . . . . Legs 398 | 20 111 . 233 34 Wheels 236 | . 236 . . . Hover 502 | . 84 373 45 . Flight . | . . . . . Fastest Speed 50 | 50 56 56 56 120 Average Speed 89 | 115 101 56 110 122 Slowest Speed 300 | 190 300 56 190 190 Overloaded Moves . | . . . . . Propulsion Burnouts . | . . . . . Robots Hopped . | . . . . . Cave-ins Triggered . | . . . . . Exploration Rate (%) 35 | 3 61 76 24 12 Regions Visited 4 Branch Regions 2 Pre-discovered Areas . | . . . . . Known Exits Taken 1 | . . . 1 . Unknown Exits Taken 3 | 1 1 1 . . Scrap Searched 1 | . . 1 . . Spaces Dug . | . . . . . Terrain Destroyed 71 | . 67 . 3 1 Melee . | . . . . . Projectile 4 | . . . 3 1 AOE 67 | . 67 . . . Terrain Rammed . | . . . . . Walls Destroyed . | . . . . . Machines Disabled . | . . . . . Actions | -11 -10 -10 -9 -9 --------- Run | Yrd Mat Min Mat Sto Total 1608 | 45 588 485 382 108 Wait 115 | . 4 103 8 . Move 1167 | 29 455 372 277 34 Hop . | . . . . . Pick Up 54 | 7 28 2 15 2 Fast Attach 7 | . . . 7 . Attach 42 | 6 15 1 8 12 Detach 7 | . 2 . 2 3 Swap 26 | 2 13 2 5 4 Drop 34 | . 14 3 15 2 Fire 151 | 1 57 . 45 48 Melee . | . . . . . Ram 2 | . . 2 . . Kick 3 | . . . . 3 Crush . | . . . . . Escape Stasis . | . . . . . Rewire . | . . . . . Trap . | . . . . . Miscellaneous . | . . . . . Route ------- -11/Scrapyard -10/Materials (discovered 3 exits: *Mat / [*Min x2]) -10/Mines -9/Materials -9/Storage History --------- Turn | Location | Event 28 | -11/Scrapyard | Discovered new exit (range 15) 54 | -11/Scrapyard | Entered Materials 243 | -10/Materials | Discovered new exit (range 14) 272 | -10/Materials | Core integrity fell below 50% 300 | -10/Materials | Build established: Mutant 419 | -10/Materials | Discovered new exit (range 15) 564 | -10/Materials | Discovered new exit (range 16) 681 | -10/Materials | Core integrity fell below 20% 738 | -10/Materials | Entered Mines 741 | -10/Mines | Met a Derelict bent on vengeance 989 | -10/Mines | Found a damaged Exp. Sensor Array with a note attached 990 | -10/Mines | Found Prototype Device 992 | -10/Mines | Identified Exp. Sensor Array 1034 | -10/Mines | Learned Materials garrison access intel 1051 | -10/Mines | Discovered new exit (range 6) 1059 | -10/Mines | Entered Materials 1059 | -9/Materials | Evolved 2 slots: Propulsion x1, Utility x1 1268 | -9/Materials | Discovered new exit (range 9) 1550 | -9/Materials | Identified exit to Storage 1552 | -9/Materials | Entered Storage 1599 | -9/Storage | Garrison activated, responded to threat 1710 | -9/Storage | Core integrity fell below 50% 1741 | -9/Storage | Core integrity fell below 20% 1754 | -9/Storage | Destroyed by G-34 Mercenary with Small Laser Last Messages --------------- shutdown. 01744_ Overheating: Med. Storage Unit damaged (-59). 01744_ K-01 Serf collects debris. 01746_ G-34 Mercenary suffers critical hit (Meltdown). 01746_ R-06 Scavenger collects Flight Unit. 01747_ Overheating: Matter decay (-34). 01747_ Adv. Beam Cannon destroyed. 01748_ Overheating: Core Shielding damaged (-2). 01748_ K-01 Serf collects debris. 01749_ S-10 Pest destroyed. 01750_ Overheating: Core damaged (-44). 01750_ Core Shielding destroyed. 01750_ R-06 Scavenger collects Ion Engine. 01751_ Overheating: Med. Storage Unit damaged (-53). 01753_ K-01 Serf collects debris. 01754_ Power failure, Lgt. Nuclear Core shutdown. Map ----- +----------------------------------------------------+ | ?????????????????????????????????????????????????? | | ?????????????????????????????????????????????????? | | ?????????????????????????????????????????????????? | | ?????????????????????????????????????????????????? | | ?????????????????????????????????????????????????? | | ?????????????????????????????????????????????????? | | ?????????????????????????????????????????????????? | | ?????????????????????????????????????????????????? | | ?????????????????????????????????????????????????? | | ?????????????????????????????????????????????????? | | ?????????????????????????????????????????????????? | | ????????????????????????????##???????????????????? | | ???????????????????????????? #???????????????????? | | ??????????????????????????? #???????????????????? | | ?????????????????????#????? ????#####???????????? | | ?????????????????????# ???? ????#! !#???????????? | | ?????????????????????# """ ????#! !#???????????? | | ?????????????????????# ????#! !#???????????? | | ????????????????????## """ ?????#! !#???????????? | | ????????????????#???# """ ????## #???????????? | | ????????????????# ???# """ ????#T #???????????? | | ???????????????## ??? ==% ????## #???????????? | | ????????????####= ####k#########+######???????? | | ??????????? % ar=%%=[% ^ #???????? | | ?????????? T u!%g* ^ #???????? | | ?????????? % k %[|!@[!= r #???????? | | ????????????#### ##############+#######??????? | | ???????????????###+?????????# #??????? | | ????????????????????????????# """ """ """ #??????? | | ????????????????????????????# """ """ """ #??????? | | ????????????????????????????# """ """ """ #??????? | | ????????????????????????????? ???????? | | ????????????????????????????? ???????? | | ????????????????????????????###############??????? | | | | | | | | | | | | | | | | | | | | | | | | | | | | | | | | | +----------------------------------------------------+ Best States ------------- Heat Dissipation 28 Energy Generation 14 Energy Capacity 250 Matter Stores 300 Matter Capacity 300 Sight Range 16 Robot Scan Range 20 Terrain Scan Density 85 Additional Mass Support 6 Armor Coverage 150 Core Shielding 20 Evasion (%) 55 Particle Charging 15 Item Schematics ----------------- None Robot Schematics ------------------ None Fabricated ------------ Nothing Alien Tech Used ----------------- None Achievements -------------- None Challenges ------------ None Game ------ Seed CompactTitaniumOptics Manual? 0 Play Time 00:30:53 Cumulative 20.0 hours Start 2024.04.03 @ 20:33:42 End 2024.04.03 @ 21:03:42 Sessions 1 Manual Loads 0 Difficulty Rogue Special Mode None Game No. 32 Rogue 32 Adventurer 0 Explorer 0 Win Type - Total 0 Types 0/0/0/0/0/0/0/0/0 Lore% 15 Gallery% 22 Achievement% 17 Wizard Run 0 Options --------- Layout 2 ASCII 0 Keyboard 0 Movement Mouse Keybinds 0 Fullscreen 2 Font 32/SmallcapsGlow Map View 50x44 Zoom Use 0% Tactical HUD 1 Map Filters NONE Filters NONE Steam 1 RUN: 1be795d8-0765-409c-ac9a-60de4a1bf7da